[Event "*** Biggest EVER Titled Tuesday"]
[Site "Chess.com"]
[Date "2018.04.17"]
[Round "3"]
[White "Rokis13"]
[Black "Gr3egor"]
[Result "0-1"]
[WhiteElo "2411"]
[BlackElo "2328"]
[TimeControl "180+2"]
[EndTime "13:38:01 PDT"]
[Termination "Gr3egor won by resignation"]

1. e4 {[%clk 0:03:01.9]} 1... e5 {[%clk 0:03:00.5]} 2. Nf3 {[%clk 0:03:01.9]}
2... Nc6 {[%clk 0:03:01.5]} 3. d4 {[%clk 0:03:02.8]} 3... exd4 {[%clk
0:03:02.8]} 4. Bc4 {[%clk 0:03:03.9]} 4... Nf6 {[%clk 0:03:03.4]} 5. e5 {[%clk
0:03:04.1]} 5... d5 {[%clk 0:03:03.8]} 6. Bb5 {[%clk 0:03:05.2]} 6... Ne4 {[%clk
0:03:04.1]} 7. Nxd4 {[%clk 0:03:06.3]} 7... Bd7 {[%clk 0:03:05.5]} 8. Bxc6
{[%clk 0:03:06.6]} 8... bxc6 {[%clk 0:03:06.1]} 9. O-O {[%clk 0:03:08.2]} 9...
Bc5 {[%clk 0:03:07.1]} 10. f3 {[%clk 0:03:09.1]} 10... Ng5 {[%clk 0:03:08.6]}
11. f4 {[%clk 0:03:10]} 11... Ne4 {[%clk 0:03:09.7]} 12. Be3 {[%clk 0:03:11]}
12... Bb6 {[%clk 0:03:10.9]} 13. Nd2 {[%clk 0:03:08.4]} 13... Nxd2 {[%clk
0:03:09.9]} 14. Qxd2 {[%clk 0:03:09.4]} 14... c5 {[%clk 0:03:09.1]} 15. e6
{[%clk 0:03:04]} 15... fxe6 {[%clk 0:03:01.3]} 16. Nf3 {[%clk 0:03:03.7]} 16...
O-O {[%clk 0:02:55.6]} 17. c3 {[%clk 0:03:02.4]} 17... Qf6 {[%clk 0:02:46.4]}
18. Rae1 {[%clk 0:02:59.9]} 18... Rad8 {[%clk 0:02:36.8]} 19. Ne5 {[%clk
0:02:56.5]} 19... Bb5 {[%clk 0:02:37.5]} 20. Rf3 {[%clk 0:02:48.8]} 20... d4
{[%clk 0:02:38.6]} 21. cxd4 {[%clk 0:02:49.9]} 21... cxd4 {[%clk 0:02:40.5]} 22.
Bf2 {[%clk 0:02:51]} 22... Qe7 {[%clk 0:02:27.1]} 23. f5 {[%clk 0:02:45.2]}
23... Rd6 {[%clk 0:02:13.9]} 24. Qb4 {[%clk 0:02:37.5]} 24... a6 {[%clk
0:01:48.3]} 25. a4 {[%clk 0:02:35.9]} 25... c5 {[%clk 0:01:41.9]} 26. Qa3 {[%clk
0:02:36.4]} 26... Bc6 {[%clk 0:01:35.6]} 27. a5 {[%clk 0:02:35.3]} 27... Bxf3
{[%clk 0:01:32.5]} 28. axb6 {[%clk 0:02:36.4]} 28... Bb7 {[%clk 0:01:31.9]} 29.
Qxc5 {[%clk 0:02:34.2]} 29... Rxf5 {[%clk 0:01:27.5]} 30. Bg3 {[%clk 0:02:30.9]}
30... Qd8 {[%clk 0:01:07]} 31. Qc7 {[%clk 0:01:52.2]} 31... Qxc7 {[%clk
0:00:51.6]} 32. bxc7 {[%clk 0:01:53.9]} 32... Rd5 {[%clk 0:00:42.5]} 33. Nd3
{[%clk 0:01:41.1]} 33... Bc8 {[%clk 0:00:33.8]} 34. b4 {[%clk 0:01:24]} 34... a5
{[%clk 0:00:28.9]} 35. Ra1 {[%clk 0:01:20]} 35... Rb5 {[%clk 0:00:24.4]} 36. h3
{[%clk 0:01:15.3]} 36... Kf7 {[%clk 0:00:24.1]} 37. bxa5 {[%clk 0:01:10.4]}
37... Rxa5 {[%clk 0:00:25.1]} 38. Rb1 {[%clk 0:01:11.2]} 38... Rab5 {[%clk
0:00:24]} 39. Ra1 {[%clk 0:01:12.1]} 39... Ke7 {[%clk 0:00:23.9]} 40. Ra8 {[%clk
0:01:08.5]} 40... Kd7 {[%clk 0:00:24.9]} 41. Ra4 {[%clk 0:01:03.4]} 41... e5
{[%clk 0:00:25.9]} 42. Kh2 {[%clk 0:00:58.1]} 42... Rd5 {[%clk 0:00:22.8]} 43.
Rc4 {[%clk 0:00:54.9]} 43... e4 {[%clk 0:00:20.3]} 44. Nc5+ {[%clk 0:00:55.5]}
44... Rxc5 {[%clk 0:00:21.3]} 45. Rxd4+ {[%clk 0:00:56.6]} 45... Rfd5 {[%clk
0:00:21.4]} 46. Rxe4 {[%clk 0:00:57.3]} 46... Rxc7 {[%clk 0:00:20.8]} 47. Bxc7
{[%clk 0:00:57.3]} 47... Kxc7 {[%clk 0:00:22.7]} 48. Rc4+ {[%clk 0:00:58.1]}
48... Kd8 {[%clk 0:00:23.3]} 49. Ra4 {[%clk 0:00:56.6]} 49... Ke7 {[%clk
0:00:23.4]} 50. Ra7+ {[%clk 0:00:57]} 50... Bd7 {[%clk 0:00:24.4]} 51. g4 {[%clk
0:00:58.6]} 51... Rd3 {[%clk 0:00:25]} 52. Rc7 {[%clk 0:00:57.8]} 52... Kd6
{[%clk 0:00:25.8]} 53. Ra7 {[%clk 0:00:58.6]} 53... h5 {[%clk 0:00:26.9]} 54.
Kg2 {[%clk 0:00:55.8]} 54... hxg4 {[%clk 0:00:27]} 55. hxg4 {[%clk 0:00:56.8]}
55... Rd4 {[%clk 0:00:28.3]} 56. Kf3 {[%clk 0:00:54.3]} 56... Rb4 {[%clk
0:00:22]} 57. g5 {[%clk 0:00:50.3]} 57... Rb5 {[%clk 0:00:22.9]} 58. g6 {[%clk
0:00:45.4]} 58... Rg5 {[%clk 0:00:23.8]} 59. Ra6+ {[%clk 0:00:45]} 59... Bc6+
{[%clk 0:00:24.5]} 60. Kf4 {[%clk 0:00:46.9]} 60... Rxg6 {[%clk 0:00:25.4]} 61.
Ra7 {[%clk 0:00:48.8]} 61... Rf6+ {[%clk 0:00:23.4]} 62. Kg5 {[%clk 0:00:48.6]}
62... Bd7 {[%clk 0:00:24.7]} 63. Ra6+ {[%clk 0:00:48.9]} 63... Ke7 {[%clk
0:00:25.7]} 64. Ra5 {[%clk 0:00:47.5]} 64... Rd6 {[%clk 0:00:21.2]} 65. Re5+
{[%clk 0:00:48.1]} 65... Kf7 {[%clk 0:00:21.4]} 66. Ra5 {[%clk 0:00:48.7]} 66...
Be6 {[%clk 0:00:22.1]} 67. Ra7+ {[%clk 0:00:49.5]} 67... Rd7 {[%clk 0:00:23.5]}
68. Ra6 {[%clk 0:00:49.9]} 68... Rd5+ {[%clk 0:00:22.7]} 69. Kf4 {[%clk
0:00:51]} 69... Kf6 {[%clk 0:00:24.1]} 70. Kg3 {[%clk 0:00:49.9]} 70... Rd4
{[%clk 0:00:24.5]} 71. Ra5 {[%clk 0:00:50.3]} 71... g5 {[%clk 0:00:25.3]} 72.
Ra8 {[%clk 0:00:49.2]} 72... Ke5 {[%clk 0:00:25.5]} 73. Rf8 {[%clk 0:00:49.9]}
73... Rd3+ {[%clk 0:00:26.2]} 74. Kh2 {[%clk 0:00:49.9]} 74... Bf5 {[%clk
0:00:27.4]} 75. Ra8 {[%clk 0:00:49.4]} 75... Kf4 {[%clk 0:00:28.2]} 76. Ra1
{[%clk 0:00:50]} 76... Rd2+ {[%clk 0:00:28.3]} 77. Kg1 {[%clk 0:00:50.1]} 77...
Be4 {[%clk 0:00:29.6]} 78. Rf1+ {[%clk 0:00:50.2]} 78... Bf3 {[%clk 0:00:28.4]}
79. Ra1 {[%clk 0:00:50.6]} 79... Rd1+ {[%clk 0:00:29.2]} 80. Rxd1 {[%clk
0:00:50.8]} 80... Bxd1 {[%clk 0:00:30.3]} 0-1

[Event "*** Biggest EVER Titled Tuesday"]
[Site "Chess.com"]
[Date "2018.04.17"]
[Round "3"]
[White "FCChelsea14"]
[Black "Zhani-Z"]
[Result "0-1"]
[WhiteElo "2549"]
[BlackElo "2404"]
[TimeControl "180+2"]
[EndTime "13:38:13 PDT"]
[Termination "Zhani-Z won by resignation"]

1. d4 {[%clk 0:02:53.3]} 1... Nf6 {[%clk 0:02:59.4]} 2. Nf3 {[%clk 0:02:54.2]}
2... e6 {[%clk 0:02:59.9]} 3. c4 {[%clk 0:02:55.1]} 3... Bb4+ {[%clk 0:03:00.1]}
4. Nbd2 {[%clk 0:02:55.6]} 4... O-O {[%clk 0:02:58.1]} 5. g3 {[%clk 0:02:56.4]}
5... b6 {[%clk 0:02:55.8]} 6. Bg2 {[%clk 0:02:57.3]} 6... Bb7 {[%clk 0:02:57.1]}
7. O-O {[%clk 0:02:58.4]} 7... Bxd2 {[%clk 0:02:57.3]} 8. Qxd2 {[%clk
0:02:58.9]} 8... Be4 {[%clk 0:02:58.2]} 9. b3 {[%clk 0:02:59.6]} 9... d6 {[%clk
0:02:59.2]} 10. Bb2 {[%clk 0:03:00.7]} 10... Nbd7 {[%clk 0:03:00.5]} 11. Rfd1
{[%clk 0:03:01.2]} 11... Qe7 {[%clk 0:03:01.5]} 12. Rac1 {[%clk 0:02:59.1]}
12... a5 {[%clk 0:03:02.3]} 13. a3 {[%clk 0:02:59.2]} 13... Rfd8 {[%clk
0:02:59.5]} 14. Qf4 {[%clk 0:02:58.1]} 14... h6 {[%clk 0:02:51]} 15. Bf1 {[%clk
0:02:57.2]} 15... Rac8 {[%clk 0:02:47.3]} 16. Nd2 {[%clk 0:02:58]} 16... Bh7
{[%clk 0:02:47.1]} 17. Bg2 {[%clk 0:02:57.7]} 17... e5 {[%clk 0:02:45.8]} 18.
Qe3 {[%clk 0:02:50.8]} 18... Ng4 {[%clk 0:02:29.6]} 19. Qf3 {[%clk 0:02:47.6]}
19... Ngf6 {[%clk 0:02:26.9]} 20. e3 {[%clk 0:02:42.2]} 20... Bg6 {[%clk
0:02:08.3]} 21. Qc6 {[%clk 0:02:41.5]} 21... Nb8 {[%clk 0:02:02.9]} 22. Qb7
{[%clk 0:02:37.6]} 22... Nbd7 {[%clk 0:01:53.6]} 23. Re1 {[%clk 0:02:37.2]}
23... e4 {[%clk 0:01:50.2]} 24. Qc6 {[%clk 0:02:30.4]} 24... Re8 {[%clk
0:01:49]} 25. b4 {[%clk 0:02:30.6]} 25... axb4 {[%clk 0:01:48.2]} 26. axb4
{[%clk 0:02:31.9]} 26... h5 {[%clk 0:01:48.7]} 27. Nf1 {[%clk 0:02:11.9]} 27...
h4 {[%clk 0:01:41.2]} 28. Ra1 {[%clk 0:02:12]} 28... Qe6 {[%clk 0:01:30.5]} 29.
Ra7 {[%clk 0:01:55.3]} 29... h3 {[%clk 0:01:29.9]} 30. Bh1 {[%clk 0:01:54.7]}
30... Qf5 {[%clk 0:01:25.2]} 31. Nd2 {[%clk 0:01:54.5]} 31... Nb8 {[%clk
0:00:49]} 32. Qb5 {[%clk 0:01:45.9]} 32... Qxb5 {[%clk 0:00:49.2]} 33. cxb5
{[%clk 0:01:47]} 33... Nd5 {[%clk 0:00:50.7]} 34. Ra4 {[%clk 0:01:46.8]} 34...
Nd7 {[%clk 0:00:50.3]} 35. Rea1 {[%clk 0:01:41.2]} 35... N7f6 {[%clk 0:00:50.3]}
36. Nb3 {[%clk 0:01:27.1]} 36... Bf5 {[%clk 0:00:49.8]} 37. Nc1 {[%clk
0:01:27.8]} 37... Bd7 {[%clk 0:00:49.4]} 38. Ra7 {[%clk 0:01:17.7]} 38... Bxb5
{[%clk 0:00:49.6]} 39. Nb3 {[%clk 0:01:12]} 39... Nxb4 {[%clk 0:00:43.3]} 40.
Nd2 {[%clk 0:01:12.3]} 40... Nbd5 {[%clk 0:00:42.6]} 41. Nb1 {[%clk 0:01:04.9]}
41... Bd3 {[%clk 0:00:41.2]} 42. Nd2 {[%clk 0:01:04.1]} 42... b5 {[%clk
0:00:26.5]} 43. Nb3 {[%clk 0:01:02.7]} 43... c5 {[%clk 0:00:26.1]} 44. dxc5
{[%clk 0:00:57.6]} 44... dxc5 {[%clk 0:00:26.1]} 45. f3 {[%clk 0:00:58.9]} 45...
c4 {[%clk 0:00:26.5]} 46. Nd4 {[%clk 0:00:59.9]} 46... c3 {[%clk 0:00:27.3]} 47.
Bc1 {[%clk 0:01:01.2]} 47... b4 {[%clk 0:00:26]} 48. g4 {[%clk 0:00:57.5]} 48...
exf3 {[%clk 0:00:22.6]} 49. Bxf3 {[%clk 0:00:57.7]} 49... Be4 {[%clk 0:00:23.6]}
50. Be2 {[%clk 0:00:50.3]} 50... Re7 {[%clk 0:00:18.4]} 51. g5 {[%clk
0:00:41.3]} 51... Nd7 {[%clk 0:00:19]} 52. Kf2 {[%clk 0:00:33]} 52... Nc5 {[%clk
0:00:19.2]} 53. R7a5 {[%clk 0:00:17.6]} 53... b3 {[%clk 0:00:15.3]} 54. Rxc5
{[%clk 0:00:18.6]} 54... Rxc5 {[%clk 0:00:16.2]} 55. Nxb3 {[%clk 0:00:18.5]}
55... Rc8 {[%clk 0:00:17.5]} 56. Nd4 {[%clk 0:00:19]} 56... Nb4 {[%clk
0:00:18.1]} 57. Kg3 {[%clk 0:00:18.1]} 57... Rb7 {[%clk 0:00:18.5]} 58. Bg4
{[%clk 0:00:17.5]} 58... Rd8 {[%clk 0:00:17.8]} 59. Bxh3 {[%clk 0:00:18.4]}
59... Nd3 {[%clk 0:00:18.3]} 60. Bg4 {[%clk 0:00:17]} 60... Rdb8 {[%clk
0:00:17.3]} 61. Be2 {[%clk 0:00:15.8]} 61... Rb1 {[%clk 0:00:17]} 62. Rxb1
{[%clk 0:00:17.1]} 62... Rxb1 {[%clk 0:00:17.8]} 63. Ba3 {[%clk 0:00:18.7]}
63... Nb4 {[%clk 0:00:16]} 64. Bxb4 {[%clk 0:00:19.3]} 64... Rxb4 {[%clk
0:00:16.6]} 65. Kf4 {[%clk 0:00:20.9]} 65... c2 {[%clk 0:00:16.9]} 0-1

[Event "*** Biggest EVER Titled Tuesday"]
[Site "Chess.com"]
[Date "2018.04.17"]
[Round "3"]
[White "Winehouse83"]
[Black "Superfelix"]
[Result "0-1"]
[WhiteElo "2353"]
[BlackElo "2353"]
[TimeControl "180+2"]
[EndTime "13:38:17 PDT"]
[Termination "Superfelix won on time"]

1. e4 {[%clk 0:02:59.5]} 1... c6 {[%clk 0:03:00.6]} 2. Nc3 {[%clk 0:02:59.3]}
2... g6 {[%clk 0:03:01.7]} 3. d4 {[%clk 0:02:57.3]} 3... d5 {[%clk 0:03:02.6]}
4. Nf3 {[%clk 0:02:51.3]} 4... dxe4 {[%clk 0:03:03.2]} 5. Nxe4 {[%clk
0:02:51.8]} 5... Nf6 {[%clk 0:03:05.1]} 6. Nxf6+ {[%clk 0:02:51.6]} 6... exf6
{[%clk 0:03:07]} 7. Bc4 {[%clk 0:02:52]} 7... Bg7 {[%clk 0:03:08]} 8. O-O {[%clk
0:02:52.3]} 8... O-O {[%clk 0:03:08.7]} 9. h3 {[%clk 0:02:53.5]} 9... a5 {[%clk
0:03:10.2]} 10. Bf4 {[%clk 0:02:49.7]} 10... Na6 {[%clk 0:03:11.5]} 11. Re1
{[%clk 0:02:47.4]} 11... Nc7 {[%clk 0:03:12.9]} 12. Bxc7 {[%clk 0:02:39.2]}
12... Qxc7 {[%clk 0:03:13.6]} 13. a4 {[%clk 0:02:39.9]} 13... Bf5 {[%clk
0:03:08.9]} 14. c3 {[%clk 0:02:36.8]} 14... Bh6 {[%clk 0:03:09.3]} 15. Bd3
{[%clk 0:02:33.2]} 15... Be6 {[%clk 0:03:09.4]} 16. Qe2 {[%clk 0:02:31]} 16...
Rfe8 {[%clk 0:03:10.1]} 17. Qf1 {[%clk 0:02:31.7]} 17... Bd5 {[%clk 0:03:07.4]}
18. Rxe8+ {[%clk 0:02:19.1]} 18... Rxe8 {[%clk 0:03:09.3]} 19. Qd1 {[%clk
0:02:20.1]} 19... Qf4 {[%clk 0:03:08.7]} 20. Bf1 {[%clk 0:01:58.5]} 20... Bf8
{[%clk 0:03:04]} 21. Nd2 {[%clk 0:01:46.9]} 21... Bd6 {[%clk 0:02:59.5]} 22. g3
{[%clk 0:01:47.7]} 22... Qf5 {[%clk 0:02:55]} 23. Bg2 {[%clk 0:01:46.5]} 23...
h5 {[%clk 0:02:54.4]} 24. Bxd5 {[%clk 0:01:33.2]} 24... cxd5 {[%clk 0:02:56.3]}
25. Qb1 {[%clk 0:01:26.9]} 25... Qxh3 {[%clk 0:02:52.5]} 26. Qd3 {[%clk
0:01:24.3]} 26... h4 {[%clk 0:02:46]} 27. Nf1 {[%clk 0:01:24.9]} 27... hxg3
{[%clk 0:02:44.8]} 28. fxg3 {[%clk 0:01:24.4]} 28... Kg7 {[%clk 0:02:41.9]} 29.
Rd1 {[%clk 0:01:23.9]} 29... Rh8 {[%clk 0:02:39.4]} 30. Qf3 {[%clk 0:01:24.2]}
30... Re8 {[%clk 0:02:35.9]} 31. Rd2 {[%clk 0:01:24]} 31... Qe6 {[%clk
0:02:27.7]} 32. Rh2 {[%clk 0:01:19.1]} 32... Qe4 {[%clk 0:02:25.9]} 33. Qxe4
{[%clk 0:01:15.9]} 33... Rxe4 {[%clk 0:02:27.8]} 34. Kf2 {[%clk 0:01:08.9]}
34... f5 {[%clk 0:02:28.2]} 35. Kf3 {[%clk 0:01:07.3]} 35... g5 {[%clk 0:02:28]}
36. Nd2 {[%clk 0:01:08.3]} 36... Re1 {[%clk 0:02:25.6]} 37. Nb3 {[%clk
0:01:05.9]} 37... b6 {[%clk 0:02:26.4]} 38. Rf2 {[%clk 0:01:04.1]} 38... Rg1
{[%clk 0:02:26]} 39. Rg2 {[%clk 0:01:04.3]} 39... Re1 {[%clk 0:02:14.2]} 40. Nd2
{[%clk 0:01:00.5]} 40... g4+ {[%clk 0:02:09.6]} 41. Kf2 {[%clk 0:01:01]} 41...
Rd1 {[%clk 0:02:08.8]} 42. Ke2 {[%clk 0:00:58.7]} 42... Rc1 {[%clk 0:02:07.9]}
43. Kd3 {[%clk 0:00:57.1]} 43... Kg6 {[%clk 0:02:06.9]} 44. b3 {[%clk
0:00:53.9]} 44... Kg5 {[%clk 0:02:03.8]} 45. c4 {[%clk 0:00:54.1]} 45... dxc4+
{[%clk 0:02:01.2]} 46. Nxc4 {[%clk 0:00:55.9]} 46... Bc7 {[%clk 0:01:58.8]} 47.
Kd2 {[%clk 0:00:42.8]} 47... Rf1 {[%clk 0:01:56.2]} 48. d5 {[%clk 0:00:41.9]}
48... Rf3 {[%clk 0:01:56.9]} 49. Kc2 {[%clk 0:00:39.4]} 49... Rxg3 {[%clk
0:01:53.4]} 50. Re2 {[%clk 0:00:32.7]} 50... f4 {[%clk 0:01:47.1]} 51. d6 {[%clk
0:00:33.3]} 51... Bd8 {[%clk 0:01:48.4]} 52. Re8 {[%clk 0:00:34]} 52... Bf6
{[%clk 0:01:49.4]} 53. d7 {[%clk 0:00:30.4]} 53... f3 {[%clk 0:01:50.7]} 54. Nd6
{[%clk 0:00:30.6]} 54... Rg2+ {[%clk 0:01:42.4]} 55. Kd3 {[%clk 0:00:31.1]}
55... Kf4 {[%clk 0:01:39.9]} 56. Re4+ {[%clk 0:00:21.5]} 56... Kg3 {[%clk
0:01:40.7]} 57. Nf5+ {[%clk 0:00:21.3]} 57... Kh2 {[%clk 0:01:37.8]} 58. Ne3
{[%clk 0:00:20.6]} 58... g3 {[%clk 0:01:30.7]} 59. Ng4+ {[%clk 0:00:18.8]} 59...
Kh3 {[%clk 0:01:27]} 60. Nxf6 {[%clk 0:00:20.2]} 60... f2 {[%clk 0:01:28.4]} 61.
Rf4 {[%clk 0:00:18.6]} 61... Rg1 {[%clk 0:01:27.6]} 62. d8=Q {[%clk 0:00:19.3]}
62... Rd1+ {[%clk 0:01:28.5]} 63. Ke2 {[%clk 0:00:16.8]} 63... Rxd8 {[%clk
0:01:30.4]} 64. Ne4 {[%clk 0:00:16.2]} 64... Kg2 {[%clk 0:01:23.5]} 65. Rf3
{[%clk 0:00:14.1]} 65... f5 {[%clk 0:01:13.2]} 66. Rxg3+ {[%clk 0:00:07.5]}
66... Kh2 {[%clk 0:01:13.7]} 67. Rf3 {[%clk 0:00:06.4]} 67... fxe4 {[%clk
0:01:12.6]} 68. Rxf2+ {[%clk 0:00:07.6]} 68... Kg3 {[%clk 0:01:13.9]} 69. Rf6
{[%clk 0:00:08.7]} 69... Rc8 {[%clk 0:01:02.3]} 70. Rxb6 {[%clk 0:00:08.6]}
70... Rc3 {[%clk 0:01:00.3]} 71. Rb5 {[%clk 0:00:03.9]} 71... Kf4 {[%clk
0:01:00.7]} 72. Kd2 {[%clk 0:00:05.1]} 72... Rd3+ {[%clk 0:01:01.2]} 73. Ke2
{[%clk 0:00:05.6]} 73... Rh3 {[%clk 0:01:02]} 74. Rxa5 {[%clk 0:00:05.3]} 74...
Rxb3 {[%clk 0:01:02.5]} 75. Rb5 {[%clk 0:00:04.1]} 75... Ra3 {[%clk 0:01:03.1]}
76. Rb3 {[%clk 0:00:04]} 76... Rxb3 {[%clk 0:01:03.8]} 0-1

[Event "*** Biggest EVER Titled Tuesday"]
[Site "Chess.com"]
[Date "2018.04.17"]
[Round "3"]
[White "Cryptochess"]
[Black "PulpanJ"]
[Result "0-1"]
[WhiteElo "2408"]
[BlackElo "2476"]
[TimeControl "180+2"]
[EndTime "13:38:20 PDT"]
[Termination "PulpanJ won by resignation"]

1. e4 {[%clk 0:03:01.9]} 1... e5 {[%clk 0:03:00.7]} 2. Nf3 {[%clk 0:03:02.6]}
2... Nc6 {[%clk 0:03:02.1]} 3. Bc4 {[%clk 0:03:04.3]} 3... Be7 {[%clk
0:02:57.8]} 4. O-O {[%clk 0:03:04.1]} 4... Nf6 {[%clk 0:02:58.2]} 5. Re1 {[%clk
0:03:00.4]} 5... Nxe4 {[%clk 0:02:51.9]} 6. Rxe4 {[%clk 0:02:41.5]} 6... d5
{[%clk 0:02:52.5]} 7. Nxe5 {[%clk 0:02:33.4]} 7... Nxe5 {[%clk 0:02:38.8]} 8.
Rxe5 {[%clk 0:02:29.2]} 8... dxc4 {[%clk 0:02:36.8]} 9. Qe2 {[%clk 0:02:14.5]}
9... Be6 {[%clk 0:02:30.7]} 10. Nc3 {[%clk 0:02:11.3]} 10... O-O {[%clk
0:02:30.5]} 11. b3 {[%clk 0:02:03.3]} 11... Bf6 {[%clk 0:02:16.9]} 12. Re3
{[%clk 0:02:03.7]} 12... Bd4 {[%clk 0:02:08.6]} 13. Re4 {[%clk 0:01:50]} 13...
Re8 {[%clk 0:02:02.3]} 14. bxc4 {[%clk 0:01:40.6]} 14... Bf5 {[%clk 0:01:40.6]}
15. Rxe8+ {[%clk 0:01:30.1]} 15... Qxe8 {[%clk 0:01:39.9]} 16. Qxe8+ {[%clk
0:00:55]} 16... Rxe8 {[%clk 0:01:39.9]} 17. Ba3 {[%clk 0:00:55.5]} 17... Bxc2
{[%clk 0:01:38.2]} 18. Rc1 {[%clk 0:00:52.4]} 18... Bxc3 {[%clk 0:01:35.7]} 19.
dxc3 {[%clk 0:00:49.2]} 19... Re2 {[%clk 0:01:36.2]} 20. Bc5 {[%clk 0:00:46]}
20... b6 {[%clk 0:01:29.4]} 21. Be3 {[%clk 0:00:47]} 21... Bd3 {[%clk
0:01:29.6]} 22. c5 {[%clk 0:00:39.6]} 22... Rxa2 {[%clk 0:01:29]} 23. h4 {[%clk
0:00:35.8]} 23... Be2 {[%clk 0:01:05.4]} 24. c4 {[%clk 0:00:30.9]} 24... Ra4
{[%clk 0:01:00.8]} 25. cxb6 {[%clk 0:00:31.8]} 25... axb6 {[%clk 0:01:01.9]} 26.
c5 {[%clk 0:00:31.5]} 26... b5 {[%clk 0:01:00.6]} 27. c6 {[%clk 0:00:32.9]}
27... f6 {[%clk 0:00:55.4]} 28. f3 {[%clk 0:00:29.5]} 28... Ra6 {[%clk
0:00:52.4]} 29. Bf4 {[%clk 0:00:18.5]} 29... Bc4 {[%clk 0:00:50.7]} 30. Bxc7
{[%clk 0:00:19.9]} 30... Rxc6 {[%clk 0:00:51.7]} 31. Ba5 {[%clk 0:00:21.1]}
31... Ra6 {[%clk 0:00:50.6]} 32. Bb4 {[%clk 0:00:22.3]} 32... Kf7 {[%clk
0:00:50.3]} 33. Kf2 {[%clk 0:00:22.8]} 33... h5 {[%clk 0:00:50.8]} 34. Ke3
{[%clk 0:00:23.9]} 34... Ra2 {[%clk 0:00:51]} 35. g4 {[%clk 0:00:23.8]} 35...
Rh2 {[%clk 0:00:49.5]} 36. Be1 {[%clk 0:00:18.5]} 36... Kg6 {[%clk 0:00:43.3]}
37. Kf4 {[%clk 0:00:17.6]} 37... Re2 {[%clk 0:00:36.3]} 38. Bb4 {[%clk
0:00:15.4]} 38... Rb2 {[%clk 0:00:36.3]} 39. Bd6 {[%clk 0:00:15.5]} 39... Rd2
{[%clk 0:00:35]} 40. gxh5+ {[%clk 0:00:16.6]} 40... Kxh5 {[%clk 0:00:35]} 41.
Bf8 {[%clk 0:00:17.3]} 41... Rg2 {[%clk 0:00:29.2]} 42. Rd1 {[%clk 0:00:14.2]}
42... Kg6 {[%clk 0:00:21.5]} 43. Rd7 {[%clk 0:00:13]} 43... Kh7 {[%clk
0:00:22.6]} 44. Rb7 {[%clk 0:00:13.9]} 44... Kg8 {[%clk 0:00:23.3]} 45. Bc5
{[%clk 0:00:13.3]} 45... Re2 {[%clk 0:00:20.8]} 46. Bd4 {[%clk 0:00:10.3]} 46...
Re6 {[%clk 0:00:20.9]} 47. h5 {[%clk 0:00:10.5]} 47... Rd6 {[%clk 0:00:21]} 48.
Bc3 {[%clk 0:00:11]} 48... Rc6 {[%clk 0:00:22]} 49. h6 {[%clk 0:00:10.2]} 49...
gxh6 {[%clk 0:00:23.7]} 50. Bd4 {[%clk 0:00:08.3]} 50... Rd6 {[%clk 0:00:22.5]}
51. Bb2 {[%clk 0:00:08.4]} 51... Rc6 {[%clk 0:00:20.6]} 52. Kf5 {[%clk
0:00:08.8]} 52... Bd3+ {[%clk 0:00:21.9]} 53. Kf4 {[%clk 0:00:09.1]} 53... h5
{[%clk 0:00:19.7]} 54. Kg3 {[%clk 0:00:10.3]} 54... Be2 {[%clk 0:00:16.9]} 55.
Bd4 {[%clk 0:00:08.5]} 55... Rd6 {[%clk 0:00:17.4]} 56. Bb2 {[%clk 0:00:09]}
56... Rd3 {[%clk 0:00:16.9]} 57. Kf2 {[%clk 0:00:06.3]} 57... Bxf3 {[%clk
0:00:16]} 58. Rxb5 {[%clk 0:00:07]} 58... Bg4 {[%clk 0:00:17.4]} 59. Bxf6 {[%clk
0:00:07.4]} 59... Rf3+ {[%clk 0:00:18.2]} 60. Kg2 {[%clk 0:00:09]} 60... Rxf6
{[%clk 0:00:20]} 61. Rb8+ {[%clk 0:00:10.7]} 61... Kg7 {[%clk 0:00:21.6]} 62.
Rb7+ {[%clk 0:00:12.6]} 62... Rf7 {[%clk 0:00:22.1]} 63. Rb5 {[%clk 0:00:14.5]}
63... Kg6 {[%clk 0:00:23.3]} 64. Kg3 {[%clk 0:00:16.1]} 64... Rf3+ {[%clk
0:00:24.2]} 65. Kg2 {[%clk 0:00:17.4]} 65... Rf5 {[%clk 0:00:25.6]} 66. Rb6+
{[%clk 0:00:18.6]} 66... Kg5 {[%clk 0:00:26.8]} 67. Kg3 {[%clk 0:00:20.2]} 67...
h4+ {[%clk 0:00:28]} 68. Kg2 {[%clk 0:00:21.2]} 68... h3+ {[%clk 0:00:29.8]} 69.
Kh2 {[%clk 0:00:22]} 69... Rf2+ {[%clk 0:00:30.9]} 70. Kg1 {[%clk 0:00:23.6]}
70... Ra2 {[%clk 0:00:32.1]} 71. Rb3 {[%clk 0:00:23.3]} 71... Kh4 {[%clk
0:00:32.4]} 72. Rc3 {[%clk 0:00:24.1]} 72... Kg5 {[%clk 0:00:32.9]} 73. Rb3
{[%clk 0:00:25.3]} 73... Kf4 {[%clk 0:00:34.3]} 74. Rb8 {[%clk 0:00:21.6]} 74...
h2+ {[%clk 0:00:34.8]} 0-1